Cogmind - Beta 16 @@@ ROGUE MODE // 2025.10.30 @ 16:35:04 Player: BlobtheGreat Result: Destroyed by H-66 Slayer with Heavy Assault Rifle Performance ------------- Evolutions (5) 2500 Regions Visited (6) 1200 Robots Destroyed (68) 340 Value Destroyed (1848) 1848 Prototype IDs (20) 400 Alien Tech Used (0) 0 Bonus (918) 918 TOTAL SCORE: 7206 Bonus ------- High Alert Combat Kills 29 Follower Combat Kills 89 Registered with UFD 300 Met Optimus in HQ 500 Cogmind --------- Core Integrity 0/1000 Matter 11/300 Energy 42/100 System Corruption 22% Temperature Cool (0) Movement Hovering (110) Ox1 Location -5/Factory Parts ------- > --- POWER (2) -------- (None) > --- PROPULSION (5) --- Gyrokinetic Inverter > --- UTILITY (7) ------ Large Storage Unit Enhanced Optical Array Improved Sensor Array Improved Signal Interpreter Improved Hacking Suite System Shield > --- WEAPON (3) ------- (None) > --- INVENTORY (15) --- Combat Gravmag System Precision Matter Filter Improved Transmission Jammer Hardened Light Armor Plating Advanced Powered Armor Long-range Tractor Beam Rainbow Chip Long-range Proton Cannon Enhanced Nova Cannon Improved Remote Datajack Improved Plasma Cutter CPS Tube (2) Multitool Peak State ------------ > --- POWER ------------ Neutrino Core Light Particle Reactor > --- PROPULSION ------- Antigrav System Gyrokinetic Inverter Linear Gravjet Antigrav Array > --- UTILITY ---------- Large Storage Unit Enhanced Optical Array Improved Sensor Array Improved Signal Interpreter Hacking Suite Improved Hacking Suite System Shield > --- WEAPON ----------- Long-range Proton Cannon Hypervelocity Coil Gun > --- INVENTORY -------- Combat Gravmag System Combat Gravmag System Advanced Heat Sink Precision Matter Filter Improved Transmission Jammer Hardened Light Armor Plating Advanced Powered Armor Long-range Tractor Beam Rainbow Chip Enhanced Nova Cannon Improved Remote Datajack Advanced Remote Datajack Improved Plasma Cutter CPS Tube Multitool [Rating: 92] Favorites ----------- Power Ion Engine Engine Ion Engine Power Core Light Nuclear Core Reactor Light Particle Reactor Propulsion Light Treads Treads Light Treads Leg Improved Carbon-fiber Leg Wheel Armored Wheel Hover Unit Gyrokinetic Inverter Utility High-capacity Storage Unit Device Seismic Detector Storage High-capacity Storage Unit Processor Enhanced Optical Array Hackware Hacking Suite Protection Light Armor Plating Weapon Spread Laser Energy Gun Spread Laser Energy Cannon Proton Cannon Ballistic Gun Assault Rifle Ballistic Cannon Advanced Assault Cannon Launcher Long-range Missile Launcher Slashing Weapon Makeshift Axe Build | -11 -10 -10 -7 -5 -5 -5 ------- Run | Yrd Mat Sub Scr Fac Was Fac Slots Evolved 10 | . . . . 10 . . Power 1 | . . . . 1 . . Propulsion 3 | . . . . 3 . . Utility 5 | . . . . 5 . . Weapon 1 | . . . . 1 . . Parts Attached 90 | 7 7 10 7 46 2 11 Power 15 | 1 1 1 1 10 1 . Engine 8 | 1 1 1 . 5 . . Core 6 | . . . 1 5 . . Reactor 1 | . . . . . 1 . Propulsion 28 | 2 2 3 2 14 1 4 Treads 9 | 2 2 3 2 . . . Leg 3 | . . . . 3 . . Wheel 1 | . . . . 1 . . Hover 15 | . . . . 10 1 4 Flight . | . . . . . . . Utility 28 | 2 3 1 . 17 . 5 Device 8 | 1 . . . 6 . 1 Storage 4 | 1 2 . . 1 . . Processor 4 | . . . . 3 . 1 Hackware 5 | . . . . 3 . 2 Protection 7 | . 1 1 . 4 . 1 Artifact . | . . . . . . . Weapon 19 | 2 1 5 4 5 . 2 Energy Gun 3 | . . 2 1 . . . Energy Cannon 3 | . . . 1 . . 2 Ballistic Gun 8 | 2 . 2 . 4 . . Ballistic Cannon 2 | . . 1 1 . . . Launcher 2 | . 1 . 1 . . . Special Weapon . | . . . . . . . Impact Weapon . | . . . . . . . Slashing Weapon 1 | . . . . 1 . . Piercing Weapon . | . . . . . . . Special Melee Weapon . | . . . . . . . Unidentified Prototypes 2 | . . . . 2 . . Corrupted Parts 1 | . . . . 1 . . System Corruption 1 | . . . . 1 . . Parts Lost 53 | . . 7 . 37 . 9 Power 12 | . . 1 . 9 . 2 Propulsion 23 | . . 3 . 16 . 4 Utility 10 | . . 1 . 7 . 2 Weapon 8 | . . 2 . 5 . 1 Highest Loss Streak 14 | . . 3 . 14 . 5 To Critical Strikes 1 | . . 1 . . . . Average Backups 15 | 5 12 16 17 14 11 14 Power 1 | . 1 2 1 . . . Propulsion 3 | 3 5 3 3 3 . . Utility 4 | . 2 4 6 5 5 6 Weapon 3 | . 3 4 4 2 1 1 Tool/Special . | . . . . . . . Unused Backups 22 | . 4 . 7 1 . 10 Power 3 | . . . 2 . . 1 Propulsion 6 | . 4 . 2 . . . Utility 3 | . . . . . . 3 Weapon 4 | . . . 2 1 . 1 Tool/Special 6 | . . . 1 . . 5 Average Slot Usage (%) 92 | . 97 99 100 74 51 69 Engine 10 | . 14 14 11 3 . . Core 1 | . . . 2 4 3 2 Treads 22 | . 28 27 28 5 . . Hover 3 | . . . . 12 9 18 Device 8 | . 1 5 14 6 5 3 Storage 11 | . 14 14 14 5 5 5 Processor 2 | . . . . 7 11 11 Hackware 2 | . . . . 8 11 16 Protection 3 | . 9 8 . 3 . . Energy Gun 6 | . . 6 12 . . . Ballistic Gun 7 | . 27 14 . 2 . 2 Ballistic Cannon 6 | . . 6 12 . . . Peak Build Rating 92 | 7 9 13 26 78 65 92 Average Rating 23 | 6 7 10 17 58 52 70 On Entrance 21 | . 7 9 13 26 32 65 Avg Prop Armor Cover (%) 4 | . . . . 4 . . Naked Turns . | . . . . . . . Heaviest Build 99 | 14 51 55 62 99 49 57 Greatest Support 86 | 40 40 40 46 86 37 59 Greatest Overweight (x) 9 | . 1 1 1 8 1 9 Average Overweight (x) . | . . 1 1 . . . Largest Inventory Capacity 20 | 8 20 20 20 20 15 15 Average Capacity 18 | 7 14 20 20 16 15 15 Most Carried 20 | 6 16 20 20 20 14 15 Average Carried 16 | 5 12 18 19 15 11 14 Final Capacity 20 | 8 20 20 20 15 15 15 Final Carried 20 | 6 16 20 20 11 14 13 Class Distribution -------------------- 82% | Mutant 13% | Hacker-Mutant Dominant Class ---------------- Mutant | -10/Materials Mutant | -10/Subcaves Mutant | -7/Scraptown Hacker-Mutant | -5/Factory Hacker-Mutant | -5/Waste Hacker-Mutant | -5/Factory Resources | -11 -10 -10 -7 -5 -5 -5 ----------- Run | Yrd Mat Sub Scr Fac Was Fac Matter Collected 2330 | 434 249 530 52 960 105 . Remotely . | . . . . . . . Salvage Created 2244 | 280 437 242 . 1280 . 5 Parts 156 | 25 31 22 . 74 . 4 Haulers Intercepted 5 | . 2 . . 3 . . Recyclers Shooed 3 | 1 . . . 2 . . Parts Field Recycled . | . . . . . . . Retrieved Matter . | . . . . . . . Parts Self-Destructed 6 | . . 6 . . . . Prevented . | . . . . . . . Parts Restored . | . . . . . . . Kills | -11 -10 -10 -7 -5 -5 -5 ------- Run | Yrd Mat Sub Scr Fac Was Fac Combat Hostiles Destroyed 40 | . 11 12 . 16 . 1 Melee 4 | . . . . 4 . . Guns 25 | . 8 11 . 6 . . Cannons 1 | . . . . 1 . . AOE 8 | . 3 1 . 3 . 1 Classes Destroyed 14 | 3 4 2 . 5 . . Worker 5 | 2 1 . . 1 . 1 Builder 2 | . . . . 1 . 1 Tunneler 10 | 9 . . . 1 . . Hauler 5 | . 2 . . 3 . . Recycler 2 | 1 . . . 1 . . Mechanic 1 | . . . . 1 . . Operator 2 | . 1 . . 1 . . Watcher 1 | . . . . 1 . . Swarmer 16 | . 5 4 . 6 . 1 Grunt 9 | . 6 . . 3 . . Sentry 1 | . . . . 1 . . Programmer 6 | . . . . 6 . . Artisan 1 | . . 1 . . . . Subdweller 8 | . . 8 . . . . Best Kill Streak 5 | 3 4 4 . 5 . 3 Combat Bots Only 4 | . 4 4 . 4 . 1 Max Kills in Single Turn 3 | 1 1 1 . 2 . 3 Gunslinging . | . . . . . . . Exploded 1 | . 1 1 . 1 . 1 Melee 1 | . . . . 1 . . Uniques/NPCs Destroyed . | . . . . . . . Combat | -11 -10 -10 -7 -5 -5 -5 -------- Run | Yrd Mat Sub Scr Fac Was Fac Hostile Shots Fired 534 | . 43 108 . 308 . 75 Missed 173 | . 8 35 . 100 . 30 Hits 361 | . 35 73 . 208 . 45 Projectile 361 | . 35 73 . 208 . 45 AOE 9 | . . 4 . 5 . . Critical Strikes 15 | . . 3 . 8 . 4 Damage Taken 7574 | . 380 1339 . 4878 . 977 Core 1232 | . 49 180 . 729 . 274 Absorbed by Shields . | . . . . . . . Redirected to Shielding 109 | . . . . 109 . . Regen/Repaired (Parts) 362 | . 58 . 304 . . . Core Remaining (%) 54 | 100 . . 8 . . . Volleys Fired 221 | 42 40 77 . 38 . 24 Largest 3 | 2 2 2 . 3 . 1 Hottest 150 | 40 40 98 . 150 . 65 Shots Fired 357 | 84 78 112 . 62 . 21 Gun 306 | 84 76 93 . 43 . 10 Cannon 39 | . . 15 . 13 . 11 Launcher 12 | . 2 4 . 6 . . Special . | . . . . . . . Kinetic 304 | 84 76 94 . 40 . 10 Thermal 29 | . . 14 . 4 . 11 Explosive 12 | . 2 4 . 6 . . Electromagnetic 12 | . . . . 12 . . Robot Hit Streak 15 | 13 11 12 . 15 . 6 Robot Miss Streak 5 | 4 4 5 . 3 . 1 Penetration Max 1 | . . . . 1 . . Secondary Targets 2 | . 1 . . 1 . . Max Gunslinging Chain 1 | . 1 . . 1 . . Shots Hit Robots 246 | 53 44 76 . 71 . 2 Core Hits 124 | 17 28 37 . 40 . 2 Critical Kills 3 | . . . . 3 . . Critical Parts Destroyed 12 | . 1 . . 11 . . Critical Strikes 17 | . 1 1 . 15 . . Destroy 16 | . 1 1 . 14 . . Sever 1 | . . . . 1 . . Melee Attacks 72 | . . . . 72 . . Impact . | . . . . . . . Slashing 72 | . . . . 72 . . Piercing . | . . . . . . . Sneak Attacks 9 | . . . . 9 . . Combat Hostiles . | . . . . . . . Follow-up Attacks . | . . . . . . . Damage Inflicted 5612 | 553 685 1154 . 2845 . 375 Guns 2314 | 549 441 893 . 424 . 7 Cannons 568 | . . 215 . 327 . 26 Explosions 1437 | . 232 46 . 829 . 330 Melee 1257 | . . . . 1257 . . Ramming 36 | 4 12 . . 8 . 12 Kinetic 2279 | 549 441 933 . 349 . 7 Thermal 914 | . 114 175 . 269 . 356 Explosive 799 | . 118 46 . 635 . . Electromagnetic 327 | . . . . 327 . . Impact . | . . . . . . . Slashing 1257 | . . . . 1257 . . Piercing . | . . . . . . . Highest Corruption 22 | . 2 2 . 22 22 22 Average Corruption 7 | . 2 2 . 13 22 22 Corruption Purged . | . . . . . . . Corruption Blocked . | . . . . . . . Effects 157 | . 7 36 . 71 8 35 Message Errors 35 | . 1 11 . 17 1 5 Matter Fused 46 | . 4 12 . 19 3 8 Heat Flow Errors 15 | . . 3 . 8 . 4 Energy Discharges 13 | . . 4 . 6 2 1 Parts Rejected 3 | . . . . 2 . 1 Parts Fused 3 | . . . . 3 . . Data Loss (minor) 18 | . 1 5 . 9 1 2 Data Loss (major) 5 | . . . . 3 . 2 Misfires 4 | . . 1 . 1 . 2 Alerts 2 | . 1 . . . . 1 Misdirections 7 | . . . . 2 1 4 Weapon Failures 6 | . . . . 1 . 5 Overload Shots . | . . . . . . . Overflow Damage 592 | . 22 . . 330 . 240 Projectiles . | . . . . . . . Explosions 405 | . 22 . . 143 . 240 Melee 187 | . . . . 187 . . Knockbacks 1 | . . . . . . 1 Impact 1 | . . . . . . 1 Kinetic . | . . . . . . . Secondary . | . . . . . . . Self-Inflicted Damage 397 | . 34 . . 141 . 222 Shots 6 | . 1 . . 2 . 3 Rammed 8 | 1 3 . . 2 . 2 Targets Rammed 8 | 1 3 . . 2 . 2 Kicked . | . . . . . . . Crushed . | . . . . . . . Highest Temperature 368 | . 24 187 . 368 . 353 Average Temperature 95 | . 8 85 . 91 . 124 Received Heat Transfer 921 | . 126 81 . 576 . 138 Effects 6 | . . . . . . 6 Interference 6 | . . . . . . 6 Siege Activations . | . . . . . . . Martial Activations . | . . . . . . . Shielding Activations . | . . . . . . . Robots Disrupted . | . . . . . . . Combat Hostiles . | . . . . . . . Robots Corrupted 2 | . . . . 2 . . Combat Hostiles 2 | . . . . 2 . . Parts Fried 4 | . . . . 4 . . Impact Corruptions . | . . . . . . . Robots Melted . | . . . . . . . Combat Hostiles . | . . . . . . . Parts Melted . | . . . . . . . Heat Transferred 797 | . 50 235 . 275 . 237 Parts Sabotaged . | . . . . . . . Parts Stolen . | . . . . . . . Parts Stripped . | . . . . . . . Power Chain Reactions . | . . . . . . . Alert | -11 -10 -10 -7 -5 -5 -5 ------- Run | Yrd Mat Sub Scr Fac Was Fac Maximum Alert Level 2 | . . . . 2 . . Low Security (%) 76 | 100 100 . . 43 100 100 Level 1 18 | . . . . 43 . . Level 2 5 | . . . . 12 . . Level 3 . | . . . . . . . Level 4 . | . . . . . . . Level 5 . | . . . . . . . High Security . | . . . . . . . Max Security . | . . . . . . . Peak Influence 473 | 10 157 . . 473 78 174 Initial 78 | . . . . . 78 . Average 113 | 1 63 . . 211 39 36 Influence Increases 2237 | 60 371 140 . 1313 . 353 Destroy 0b10 Robot/C 680 | . 220 80 . 360 . 20 Destroy 0b10 Robot/NC 145 | 60 20 . . 55 . 10 Destroy Leader 144 | . 64 . . 80 . . Allied During Kill 27 | . . . . 27 . . Successful Hack 69 | . . . . 41 . 28 Disable Machine 255 | . 60 . . 105 . 90 Destroy Structure 287 | . 7 . . 210 . 70 Partial Spotted 90 | . . . . 90 . . Lose Combat Pursuer 540 | . . 60 . 345 . 135 Influence Decreases 2121 | 60 365 146 . 1090 223 237 Entered New Map 149 | . . 4 . . 145 . Time Decay 1232 | 60 365 112 . 470 78 147 Lost Part 490 | . . 30 . 370 . 90 Lost Ally 100 | . . . . 100 . . Purge Threat 150 | . . . . 150 . . Squads Dispatched 16 | . 3 . . 12 . 1 Investigation 2 | . . . . 1 . 1 Extermination 4 | . . . . 4 . . Reinforcement 9 | . 3 . . 6 . . Assault 1 | . . . . 1 . . Garrison . | . . . . . . . Intercept . | . . . . . . . Searches Triggered . | . . . . . . . Construction Impeded 1 | . . . . 1 . . Haulers Reinforced 1 | . . . . 1 . . Active Scanning Responses . | . . . . . . . Cargo Convoy Interrupts . | . . . . . . . Stealth | -11 -10 -10 -7 -5 -5 -5 --------- Run | Yrd Mat Sub Scr Fac Was Fac Distress Signals 7 | . 1 . . 4 . 2 Communications Jammed . | . . . . . . . Distress Signals . | . . . . . . . Times Spotted 118 | . 25 12 . 59 1 21 Peak Tracking Total 10 | . 5 6 . 7 1 10 Tactical Retreats 20 | . . 2 . 13 . 5 Traps | -11 -10 -10 -7 -5 -5 -5 ------- Run | Yrd Mat Sub Scr Fac Was Fac Traps Triggered 8 | . 3 . . 5 . . Indirectly . | . . . . . . . Trap Hack Attempts . | . . . . . . . Triggered . | . . . . . . . Disarmed . | . . . . . . . Reprogrammed 1 | . . . . . . 1 Reused . | . . . . . . . Traps Extracted . | . . . . . . . Installed . | . . . . . . . Triggered . | . . . . . . . Most Traps Carried 1 | . . 1 1 . . . Machines | -11 -10 -10 -7 -5 -5 -5 ---------- Run | Yrd Mat Sub Scr Fac Was Fac Machines Disabled 18 | . 4 1 . 7 . 6 Max in Single Turn 5 | . 3 1 . 3 . 5 Machines Repaired . | . . . . . . . Machines Dismantled . | . . . . . . . Machines Sabotaged . | . . . . . . . Overloaded Fab Kills . | . . . . . . . Hacking | -11 -10 -10 -7 -5 -5 -5 --------- Run | Yrd Mat Sub Scr Fac Was Fac Machines Accessed 20 | . 2 1 3 8 . 6 Terminals 11 | . 1 . . 6 . 4 Fabricators 2 | . . . . . . 2 Repair Stations 1 | . 1 . . . . . Recycling Units 1 | . . . . 1 . . Scanalyzers 1 | . . . . 1 . . Garrison Access . | . . . . . . . Total Hacks 51 | . 3 1 12 15 . 20 Successful 35 | . 2 1 12 9 . 11 Failed 16 | . 1 . . 6 . 9 Catastrophic 4 | . 1 . . 2 . 1 Database Lockouts . | . . . . . . . Manual 18 | . 1 . . 8 . 9 Terminals 27 | . 1 . . 12 . 14 Fabricators 6 | . . . . . . 6 Repair Stations 2 | . 2 . . . . . Recycling Units 1 | . . . . 1 . . Scanalyzers 2 | . . . . 2 . . Garrison Access . | . . . . . . . Terminal Hacks 22 | . . 1 12 3 . 6 Record 4 | . . . 4 . . . Robot Analysis 7 | . . . 7 . . . Branch Access Points 2 | . . . . 1 . 1 Terminal Index 1 | . . . . . . 1 Recycling Unit Index 1 | . . . . . . 1 Unreport Threat 1 | . . . . 1 . . Reprogram Traps 1 | . . . . . . 1 Hauler Manifests 1 | . . . . 1 . . Zone Layout 2 | . . . . . . 2 Proto ID Catalog 2 | . . 1 1 . . . Fabricator Hacks 3 | . . . . . . 3 Load Schematic 2 | . . . . . . 2 Build 1 | . . . . . . 1 Repair Station Hacks 2 | . 2 . . . . . Scan Component 1 | . 1 . . . . . Repair 1 | . 1 . . . . . Recycling Unit Hacks . | . . . . . . . Scanalyzer 2 | . . . . 2 . . Insert Component 1 | . . . . 1 . . Analyze 1 | . . . . 1 . . Garrison Access Hacks . | . . . . . . . Unauthorized Hacks 6 | . . . . 4 . 2 Terminals 4 | . . . . 3 . 1 Assimilate 1 | . . . . 1 . . Botnet 3 | . . . . 2 . 1 Fabricators 1 | . . . . . . 1 Recompile 1 | . . . . . . 1 Repair Stations . | . . . . . . . Recycling Units 1 | . . . . 1 . . Scrapoids 1 | . . . . 1 . . Scanalyzers . | . . . . . . . Garrison Access . | . . . . . . . Data Cores Recovered . | . . . . . . . Used . | . . . . . . . Hacking Detections 13 | . 1 . . 6 . 6 Full Trace Events . | . . . . . . . Feedback Events . | . . . . . . . Feedback Blocked . | . . . . . . . Robot Schematics Acquired . | . . . . . . . Robots Built . | . . . . . . . Authchips . | . . . . . . . Time . | . . . . . . . Total Robot Build Rating . | . . . . . . . Part Schematics Acquired 1 | . . . . 1 . . Parts Built 2 | . . . . . . 2 Authchips 1 | . . . . . . 1 Time 53 | . . . . . . 53 Total Part Build Rating 12 | . . . . . . 12 Part Studies Acquired . | . . . . . . . Parts Repaired 1 | . 1 . . . . . Time 26 | . 26 . . . . . Parts Recycled . | . . . . . . . Recycled Matter . | . . . . . . . Retrieved Matter . | . . . . . . . Retrieved Components . | . . . . . . . Parts Scanalyzed 1 | . . . . 1 . . Part Schematics Acquired 1 | . . . . 1 . . Parts Damaged . | . . . . . . . Bothacking | -11 -10 -10 -7 -5 -5 -5 ------------ Run | Yrd Mat Sub Scr Fac Was Fac Used RIF Installer . | . . . . . . . Robots Hacked . | . . . . . . . Non-combat . | . . . . . . . Combat . | . . . . . . . Robot Hacks Applied . | . . . . . . . Relay Couplers Released . | . . . . . . . Fabnet Peak Effective % . | . . . . . . . Robots Rewired . | . . . . . . . Allies Hacked . | . . . . . . . Hacks Repelled . | . . . . . . . Allies | -11 -10 -10 -7 -5 -5 -5 -------- Run | Yrd Mat Sub Scr Fac Was Fac Total Allies 5 | . . . . 5 . . Largest Group 5 | . . . . 5 . . Highest-Rated Group 223 | . . . . 223 . . Highest-Rated Ally 47 | . . . . 47 . . Total Orders 3 | . . . . 3 . . FOLLOW 1 | . . . . 1 . . EXPLORE 2 | . . . . 2 . . Ally Attacks 23 | . . . . 23 . . Total Damage 637 | . . . . 637 . . Kills 3 | . . . . 3 . . Allies Corrupted . | . . . . . . . Allies Melted . | . . . . . . . Intel | -11 -10 -10 -7 -5 -5 -5 ------- Run | Yrd Mat Sub Scr Fac Was Fac Active Infowar (turns) 7960 | 139 113 1105 4185 1704 171 543 Optics 1767 | . . . . 1053 171 543 Sensors 320 | . . . . 110 . 210 Seismic 6260 | 139 113 1105 4185 718 . . Jamming 613 | . . . . 604 . 9 Robot Analysis Total 7 | . . . 7 . . . Derelict Logs Recovered 4 | . . 1 3 . . . Drone Launches 1 | . . . . 1 . . Drone Recoveries 1 | . . . . 1 . . Exploration | -11 -10 -10 -7 -5 -5 -5 ------------- Run | Yrd Mat Sub Scr Fac Was Fac Turns Passed 11146 | 574 1045 2872 4185 1741 171 558 Spaces Moved 5869 | 277 477 1038 1682 1559 164 672 Core 4 | 3 . . . . . 1 Treads 3636 | 274 477 1038 1682 165 . . Legs 4 | . . . . 4 . . Wheels 66 | . . . . 66 . . Hover 2159 | . . . . 1324 164 671 Flight . | . . . . . . . Fastest Speed 43 | 50 160 240 240 43 61 45 Average Speed 163 | 158 176 240 240 78 99 56 Slowest Speed 500 | 160 240 240 240 320 110 500 Overloaded Moves . | . . . . . . . Propulsion Burnouts . | . . . . . . . Robots Hopped . | . . . . . . . Potential Cave-ins . | . . . . . . . Cave-ins Triggered . | . . . . . . . Exploration Rate (%) 56 | 19 86 51 85 51 87 17 Regions Visited 6 Branch Regions 2 Pre-discovered Areas 4 | . . 1 3 . . . Known Exits Taken . | . . . . . . . Unknown Exits Taken 4 | 1 1 1 1 . . . Scrap Searched 11 | . . 5 6 . . . Spaces Dug 48 | . . 17 . 29 . 2 Terrain Destroyed 166 | . 7 19 . 89 . 51 Melee 29 | . . . . 29 . . Projectile 2 | . . . . . . 2 AOE 133 | . 7 19 . 58 . 49 Terrain Rammed . | . . . . . . . Walls Destroyed . | . . . . . . . Machines Disabled . | . . . . . . . Actions | -11 -10 -10 -7 -5 -5 -5 --------- Run | Yrd Mat Sub Scr Fac Was Fac Total 7020 | 332 609 1311 1839 1932 170 827 Wait 581 | . 52 165 118 157 . 89 Move 5864 | 276 476 1037 1681 1559 163 672 Hop . | . . . . . . . Pick Up 73 | 6 14 12 16 14 4 7 Fast Attach 56 | 7 6 . . 34 2 7 Attach 49 | . 1 7 1 30 1 9 Detach 16 | . 2 . . 10 . 4 Swap 36 | . 6 9 7 8 . 6 Drop 43 | . 9 4 16 8 . 6 Fire 221 | 42 40 77 . 38 . 24 Melee 72 | . . . . 72 . . Ram 3 | . . . . . . 3 Kick . | . . . . . . . Crush 6 | 1 3 . . 2 . . Escape Stasis . | . . . . . . . Rewire . | . . . . . . . Trap . | . . . . . . . Miscellaneous . | . . . . . . . Route ------- -11/Scrapyard -10/Materials (discovered 4 exits: [*Mat x2] / [*Min] / *Sub) -10/Subcaves (discovered 2 exits: [*Mat] / *Scr) -7/Scraptown (discovered 2 exits: *Fac x2) -5/Factory (discovered 2 exits: Upp x2) -5/Waste -5/Factory (discovered 3 exits: [*Fac] / Upp x2) History --------- Turn | Location | Event 16 | -11/Scrapyard | Discovered new exit (range 16) 575 | -11/Scrapyard | Entered Materials 576 | -10/Materials | Build established: Mutant 674 | -10/Materials | Discovered new exit (range 12) 1093 | -10/Materials | Discovered new exit (range 6) 1387 | -10/Materials | Repaired Lgt. Armor Plating 1415 | -10/Materials | Discovered new exit (range 5) 1604 | -10/Materials | Discovered new exit (range 8) 1620 | -10/Materials | Entered Subcaves 1621 | -10/Subcaves | Approached by a straggling Scientist 1778 | -10/Subcaves | Shifting Twisted Machinery released Sub. Monowheel 2149 | -10/Subcaves | Learned location of Zion (-7) 2149 | -10/Subcaves | Met a Zionite searching for "candidates" 2156 | -10/Subcaves | Shifting Twisted Machinery released Sub. Power Source 2455 | -10/Subcaves | Discovered new exit (range 7) 2928 | -10/Subcaves | Core integrity fell below 50% 2930 | -10/Subcaves | Ambushed by Subdweller buried in earth 2982 | -10/Subcaves | Lost 3 parts (1p1u1w) 3118 | -10/Subcaves | Core integrity fell below 20% 3560 | -10/Subcaves | Learned 2 Materials zone layouts 4230 | -10/Subcaves | Visited 4L-MR0's lab 4254 | -10/Subcaves | Found Rainbow Chip 4492 | -10/Subcaves | Entered Scraptown 4492 | -7/Scraptown | System corruption cleaned by C-Scrubber 4831 | -7/Scraptown | Discovered new exit (range 13) 4951 | -7/Scraptown | Scanned Subdweller tech in exchange for log data 4958 | -7/Scraptown | Learned location of Armory (-4) 4960 | -7/Scraptown | Learned location of Warlord (-4) 4963 | -7/Scraptown | Learned location of Quarantine (-2) 5097 | -7/Scraptown | Visited Shadow of the Wyrm 5403 | -7/Scraptown | Visited Comm Corps 5442 | -7/Scraptown | Visited CR-KLE's Repair Center 5540 | -7/Scraptown | Visited IN-MT5's Study 5569 | -7/Scraptown | Visited Cyclists 5605 | -7/Scraptown | Visited UFD Registry 5605 | -7/Scraptown | Registered with UFD as "Pipeform" 5684 | -7/Scraptown | Visited Science Guys 5768 | -7/Scraptown | Visited Chapter 10 5806 | -7/Scraptown | Visited Supply Room 5840 | -7/Scraptown | Visited Abandonware Association 5857 | -7/Scraptown | Learned abandonware demo "OVRCLOCK.EXE" 5864 | -7/Scraptown | Learned abandonware demo "KABOOM.EXE" 5864 | -7/Scraptown | Learned abandonware demo "MELTYB.EXE" 5938 | -7/Scraptown | Visited Analyses Database 5989 | -7/Scraptown | Visited Scrap Suit Storage 6020 | -7/Scraptown | Visited Research Penetration Think Tank 6075 | -7/Scraptown | Visited Junk Repository 6138 | -7/Scraptown | Visited LU-1G1's Boring Crew 6265 | -7/Scraptown | Delivered Scrap Shield to a Scientist 6507 | -7/Scraptown | Visited Bundlers 7705 | -7/Scraptown | Entered Cyclist Reading Room 8190 | -7/Scraptown | CR-KLE repaired 7 parts 8555 | -7/Scraptown | Met Optimus 8555 | -7/Scraptown | Accepted into 0bPrime 8668 | -7/Scraptown | Discovered new exit (range 5) 8677 | -7/Scraptown | Entered Factory 8677 | -5/Factory | Evolved 10 slots: Power x1, Propulsion x3, Utility x5, Weapon x1 9294 | -5/Factory | Lost 5 parts (3n1u1w) 9328 | -5/Factory | System corruption reached 10% 9358 | -5/Factory | Lost 6 parts (2p2n1u1w) 9494 | -5/Factory | Scrapoid reinforcements arrived 9497 | -5/Factory | Lost 4 parts (1p1n1u1w) 9835 | -5/Factory | Build established: Hacker-Mutant 10035 | -5/Factory | Lost 3 parts (1p1n1u) 10177 | -5/Factory | First assault squad dispatched 10357 | -5/Factory | Core integrity fell below 50% 10409 | -5/Factory | Identified exit to Upper Caves 10418 | -5/Factory | Sucked down chute 10418 | -5/Factory | Entered Waste 10418 | -5/Waste | The area was eerily silent 10448 | -5/Waste | Lost 14 parts (3p7n2u2w) 10538 | -5/Waste | Found Adv. Powered Armor 10565 | -5/Waste | Discovered new exit (range 12) 10568 | -5/Waste | A Compactor rumbled back to life 10568 | -5/Waste | Spotted C-40 Crusher 10589 | -5/Waste | Entered Factory 10685 | -5/Factory | Discovered new exit (range 6) 10810 | -5/Factory | Fabricated Cmb. Gravmag System (x2) 10993 | -5/Factory | Core integrity fell below 20% 11051 | -5/Factory | Lost 5 parts (2p1n1u1w) 11097 | -5/Factory | Lost 3 parts (3n) 11147 | -5/Factory | Destroyed by H-66 Slayer with Heavy Assault Rifle Last Messages --------------- 11065_ Cmb. Gravmag System destroyed. 11066_ Antigrav System destroyed. 11066_ Critical hit (Burn: +37). 11069_ System corrupted: Heat flow error (+259). 11105_ System corrupted: Matter fused (-10). 11105_ Slammed into K-01 Serf. 11105_ K-01 Serf knocked back. 11111_ Slammed into U-05 Engineer. 11123_ System corrupted: Gyrokinetic Inverter rejected. 11123_ Acquired Gyrokinetic Inverter. 11124_ W-25 Informer sends out distress signal. 11135_ Slug penetrates Power Conduit. 11136_ Slug penetrates Wall. 11138_ System corrupted: Energy discharge (-20). 11139_ Penetrated by Slug. 11139_ Critical hit (Burn: +37). 11142_ Penetrated by Slug. 11142_ Hacking Suite destroyed. 11143_ W-25 Informer sends out distress signal. Map ----- +----------------------------------------------------+ | < ## #?????????????# ########/######???????? | | ### ## #?????????????# #??????????? | | #?# ## #?????????????# ^ ############ | | ##### #### #?????????????+ # """ | | # #??# #?????????????# + """" "" | | # #### #?????????????# # """" "" | | """ + #?????????????##### ^""" # """" | | """ # #?????????????????# """ # ! """" | | """ # #?????????????????# """ # | | ?# #?????????????????# ##+######+## | | """?# #?????????????????# ! ###### #? | | ""??# ### ############??# #? | | ""??# w #?# #? | | ???# ###############?# #?# """"""""" #? | | #???# #?????#####?????# ### ## | | #???#+##+#???# """"""????# """"""""" | | #?? ???????# """Y""" # | | #?""""???????? + !!! | | # ""?"???????? ???# !! | | # "??"????????? ??# !! | | # ?????????????? ??# ########### #### | | #???????????????"""""" !?# R #?????????# #??# | | #???????????????""""""t ?# #?????????# #??# | | #???????????????"""""" !# #?????????#+#??# | | #????????????# """""" # #???????? #?# | | #????????????# k @ + #?# | | #????????????# # #w #?# | | #????????????# =# #? #?# | | #????????????#+#########?# # """ """ #?# | | ????????????????????? # """ """ #?# | | ??????????????????? # """ """ #?# | | ?????????????? /R #?# | | " ???????????? """ # """ #?# | | " ??????????? """ # """ #?# | | " ###+####??????????? """ # "" "" ?"" #?# | | " ??????????????????? # ""G""??? #?# | | ???????????????????!! !! ###########+##?# | | ????????????????????!! !! # ## #??# | | ????????????????????!! ! # ## ##?# | | ??????????????????? ? # # ### | | ??????????????????? ??? #| + " | | ???????????????????+#????##### # ###### | | ??????????????????????????????# ## ##????? | | ???????????????????????????????# ## #?????? | | ???????????????????????????????# ] ## #?????? | | ???????????????????????????????########### #?????? | | ??????????????????????????????????????####+###??## | | ??????????????????????????????????????# ^ #??# | | ??????????????????????????????????????# """ #### | | ??????????????????????????????????????# """ + | +----------------------------------------------------+ Best States ------------- Heat Dissipation 59 Energy Generation 37 Energy Capacity 395 Matter Stores 300 Matter Capacity 300 Sight Range 22 Robot Scan Range 16 Terrain Scan Density 10 Jamming Range 14 Armor Coverage 825 Propulsion Shielding 66 Evasion (%) 56 Targeting Accuracy 8 Recoil Reduction 4 Offensive Hacking 22 Defensive Hacking 20 Authchip Count 1 Item Schematics ----------------- Cmb. Gravmag System | -5/Factory | Scanalyzed Robot Schematics ------------------ None Fabricated ------------ Cmb. Gravmag System | x2 | -5/Factory | Authchip Repaired ---------- Lgt. Armor Plating | 35% | -10/Materials Studied --------- None Alien Tech Used ----------------- None Achievements -------------- None Challenges ------------ None Game ------ Seed WeightProjectionMagmablaster Manual? 0 Play Time 01:02:36 Cumulative 179.2 hours Start 2025.10.30 @ 15:33:15 End 2025.10.30 @ 16:35:04 Sessions 1 Manual Loads 0 Difficulty Rogue Special Mode None Game No. 165 Rogue 165 Adventurer 0 Explorer 0 Win Type - Total 6 Types 5/0/1/0/0/0/0/0/0/0 Lore% 79 Gallery% 69 Achievement% 52 Wizard Run 0 Options --------- Layout 1 ASCII 0 Keyboard 1 Movement Arrows Keybinds 0 Fullscreen 1 Font 24/Smallcaps Map View 50x40 Zoom Use 0% Tactical HUD 1 Map Filters NONE Filters NONE Steam 1 RUN: 298ff7ec-30c8-4107-8b72-78efb79a5c92